bitfinex/quotes_SOLUSD_20250406
["timestamp","ask_amount","ask_price","bid_price","bid_amount"]
[1743940117369,18.64964886,118.39,118.33,26.063]
[1743940118187,81.8,118.4,118.33,26.063]
[1743940118387,81.8,118.4,118.34,6.341]
[1743940127798,81.8,118.4,118.35,1.5954]
[1743940130183,7.203,118.41,118.35,1.5954]
[1743940131901,0.063,118.41,118.35,1.5954]
[1743940140284,0.063,118.41,118.37,26.0]
[1743940145791,0.063,118.41,118.37,6.2664]
[1743940147715,0.063,118.41,118.36,26.0]
[1743940151718,0.063,118.41,118.36,26.03]
[1743940153231,0.063,118.41,118.37,26.0]
[1743940166334,0.063,118.41,118.37,26.03]
[1743940172275,0.063,118.41,118.37,0.03]
[1743940174946,7.14,118.4,118.37,0.03]
[1743940197490,8.7178,118.4,118.37,0.03]
[1743940199155,19.07613357,118.39,118.37,0.03]
[1743940207476,25.85264886,118.41,118.37,0.03]
[1743940209804,19.07613357,118.4,118.37,0.03]
[1743940210463,45.07613357,118.38,118.37,0.03]
[1743940210663,19.07613357,118.38,118.37,0.03]
[1743940213366,48.73425249,118.38,118.37,0.03]
[1743940214566,44.43613357,118.38,118.37,0.03]
[1743940215505,18.79181043,118.38,118.37,0.03]
[1743940215800,19.07613357,118.38,118.37,0.03]
[1743940217606,26.0,118.38,118.37,0.03]
[1743940217811,7.14,118.39,118.37,0.03]
[1743940218395,102.31707296,118.41,118.37,0.03]
[1743940218700,95.03491139,118.41,118.37,0.03]
[1743940218909,81.863,118.41,118.37,0.03]
[1743940219276,81.863,118.41,118.37,8.1514]
[1743940219479,0.063,118.41,118.37,8.1514]
[1743940239835,0.063,118.41,118.4,26.0]
[1743940243718,0.063,118.41,118.4,26.42648471]
[1743940244019,0.063,118.41,118.4,2.02188471]
[1743940245434,0.063,118.41,118.4,20.67153357]
[1743940246128,0.063,118.41,118.4,24.90136458]
[1743940246334,0.063,118.41,118.4,81.74756458]
[1743940246939,0.03,118.45,118.44,26.14216157]
[1743940247140,1.6236,118.51,118.44,51.19233357]
[1743940247912,0.03,118.52,118.44,51.19233357]
[1743940248115,0.03,118.52,118.45,1.5685]
[1743940249643,26.24613357,118.52,118.44,26.0]
[1743940250028,7.17,118.52,118.44,26.0]
[1743940253437,25.81964886,118.52,118.44,26.0]
[1743940256533,19.07613357,118.51,118.44,26.0]
[1743940257457,7.17,118.52,118.44,26.0]
[1743940257643,25.81964886,118.52,118.44,26.0]
[1743940259952,20.71403357,118.51,118.42,1.5685]
[1743940260129,19.07613357,118.49,118.42,1.5685]
[1743940260334,7.14,118.48,118.41,6.4521]
[1743940260846,7.14,118.48,118.4,0.063]
[1743940260847,1.6379,118.46,118.4,0.063]
[1743940261941,19.07613357,118.45,118.4,0.063]
[1743940262257,7.14,118.44,118.4,0.063]
[1743940277869,19.07613357,118.41,118.4,0.063]
[1743940284677,18.79181043,118.41,118.4,0.063]
[1743940284977,19.07613357,118.41,118.4,0.063]
[1743940293077,83.4608,118.43,118.4,0.063]
[1743940293282,7.14,118.42,118.4,0.063]
[1743940297783,90.6008,118.43,118.4,0.063]
[1743940303790,83.4608,118.43,118.4,0.063]
[1743940304088,7.14,118.42,118.4,0.063]
[1743940321499,81.8,118.43,118.4,0.063]
[1743940322721,0.03,118.45,118.4,0.063]
[1743940322927,0.03,118.45,118.42,26.0]
[1743940323103,0.03,118.45,118.42,27.5954]
[1743940323987,0.03,118.45,118.42,27.5954]
[1743940327921,0.03,118.45,118.42,26.0]
[1743940328118,0.03,118.45,118.4,0.063]
[1743940337115,19.07613357,118.43,118.4,0.063]
[1743940337419,7.14,118.42,118.4,0.063]
[1743940359530,19.07613357,118.41,118.4,0.063]
[1743940360035,102.51773357,118.41,118.4,0.063]
[1743940361233,106.81168689,118.41,118.4,0.063]
[1743940361432,102.51773357,118.41,118.4,0.063]
[1743940363831,46.07773357,118.41,118.4,0.063]
[1743940364029,45.07613357,118.38,118.37,0.03]
[1743940364230,60.31023357,118.38,118.37,0.03]
[1743940367713,46.43341043,118.38,118.37,0.03]
[1743940367918,51.93181043,118.38,118.37,0.03]
[1743940368135,52.21613357,118.38,118.37,0.03]
[1743940370436,33.14,118.38,118.37,0.03]
[1743940370742,7.14,118.38,118.37,0.03]
[1743940381444,25.78964886,118.39,118.37,0.03]
[1743940384551,0.42648471,118.38,118.37,0.03]
[1743940396143,25.78964886,118.39,118.37,0.03]
[1743940396443,7.14,118.39,118.37,0.03]
[1743940400469,81.97216157,118.4,118.37,0.03]
[1743940400671,7.14,118.39,118.37,0.03]
[1743940403167,81.83,118.4,118.37,0.03]
[1743940403357,7.14,118.39,118.37,0.03]
[1743940403670,88.97,118.4,118.37,0.03]
[1743940403873,81.83,118.4,118.37,0.03]
[1743940404174,88.97,118.4,118.37,0.03]
[1743940404362,81.83,118.4,118.37,0.03]
[1743940404565,88.97,118.4,118.37,0.03]
[1743940406283,0.03,118.4,118.37,0.03]
[1743940406472,0.03,118.4,118.37,7.9186]
[1743940421692,0.03,118.4,118.37,27.5407]
[1743940429310,0.03,118.45,118.39,26.0]
[1743940430310,0.03,118.4,118.39,26.0]
[1743940434715,0.03,118.4,118.38,40.11648471]
[1743940436521,0.03,118.4,118.38,14.11648471]
[1743940436702,0.03,118.4,118.39,26.42648471]
[1743940438798,0.03,118.4,118.39,26.0]
[1743940439827,0.03,118.4,118.37,1.96718471]
[1743940439828,0.03,118.4,118.37,0.03]
[1743940440189,0.03,118.4,118.38,26.0]
[1743940440712,0.03,118.4,118.37,26.03]
[1743940443597,0.03,118.4,118.38,26.0]
[1743940456293,0.03,118.4,118.39,26.0]
[1743940461011,0.03,118.4,118.39,52.21613357]
[1743940462319,0.03,118.4,118.39,102.94613357]
[1743940462529,0.03,118.4,118.39,103.44613357]
[1743940464497,0.03,118.4,118.39,187.37203357]
[1743940464906,0.03,118.4,118.39,188.91656556]
[1743940469326,0.03,118.4,118.39,218.91656556]
[1743940481226,0.03,118.4,118.39,196.56783039]
[1743940481429,6.572,118.51,118.48,26.0]
[1743940481622,6.572,118.51,118.49,26.0]
[1743940481827,6.572,118.51,118.5,26.0]
[1743940482129,1.5337,118.52,118.5,30.63671829]
[1743940482334,0.03,118.52,118.51,45.07613357]
[1743940485341,0.03,118.52,118.51,51.64308307]
[1743940485524,0.03,118.52,118.51,102.37308307]
[1743940487529,6.5997,118.59,118.56,26.14216157]
[1743940487728,6.5997,118.59,118.58,26.14216157]
[1743940487729,5.0234,118.59,118.58,26.14216157]
[1743940487928,5.0234,118.59,118.58,26.42648471]
[1743940488140,5.0234,118.59,118.58,45.07613357]
[1743940488338,1.6063,118.61,118.59,26.0]
[1743940489535,1.6063,118.61,118.59,26.42648471]
[1743940490739,0.03,118.61,118.59,95.80613357]
[1743940492233,0.03,118.61,118.59,45.07613357]
[1743940492740,0.03,118.61,118.59,52.19613357]
[1743940493145,0.03,118.61,118.59,45.07613357]
[1743940493335,0.03,118.61,118.59,52.19613357]
[1743940494348,0.03,118.61,118.59,102.92613357]
[1743940498249,0.03,118.61,118.59,52.19613357]
[1743940500331,0.03,118.61,118.59,102.92613357]
[1743940501339,0.03,118.61,118.59,0.42648471]
[1743940501538,0.03,118.61,118.58,7.26216157]
[1743940502452,0.03,118.61,118.58,57.99216157]
[1743940502654,0.03,118.61,118.58,7.26216157]
[1743940502955,0.03,118.61,118.59,0.14216157]
[1743940503250,0.03,118.61,118.59,0.42648471]
[1743940504646,0.03,118.61,118.58,7.12]
[1743940505530,0.03,118.61,118.57,0.42648471]
[1743940505727,1.5492,118.59,118.58,26.0]
[1743940505948,1.5492,118.59,118.55,69.25964886]
[1743940506139,1.5492,118.59,118.54,7.12]
[1743940507162,6.2186,118.58,118.54,26.0]
[1743940507331,6.2186,118.58,118.51,13.7499495]
[1743940507530,6.2186,118.58,118.52,30.0]
[1743940507737,1.5576,118.57,118.52,30.0]
[1743940508348,1.5576,118.57,118.53,26.0]
[1743940514669,1.5576,118.57,118.54,7.12]
[1743940516688,1.5576,118.57,118.55,26.0]
[1743940521454,1.5416,118.6,118.56,7.40432314]
[1743940521670,1.5416,118.6,118.58,26.0]
[1743940522352,0.03,118.6,118.59,19.07613357]
[1743940522598,0.03,118.6,118.59,26.42648471]
[1743940523277,0.03,118.6,118.59,26.0]
[1743940530279,0.03,118.6,118.57,26.0]
[1743940530982,0.03,118.6,118.56,7.12]
[1743940531883,0.03,118.6,118.58,26.0]
[1743940533087,0.03,118.6,118.57,26.0]
[1743940536099,0.03,118.6,118.59,26.0]
[1743940547903,0.03,118.6,118.59,26.42648471]
[1743940551992,0.03,118.6,118.59,45.07613357]
[1743940556825,0.03,118.6,118.59,95.68613357]
[1743940559322,0.03,118.6,118.59,178.58613357]
[1743940559803,0.03,118.62,118.6,69.68613357]
[1743940560003,0.03,118.62,118.61,7.54648471]
[1743940562522,19.07613357,118.73,118.65,26.0]
[1743940563396,81.83,118.72,118.65,26.0]
[1743940565611,81.83,118.72,118.65,33.12]
[1743940565812,81.83,118.72,118.65,39.70989905]
[1743940566622,1.5238,118.68,118.65,39.70989905]
[1743940566825,1.5238,118.68,118.66,0.42648471]
[1743940567014,7.7073,118.71,118.66,0.42648471]
[1743940567217,7.7073,118.71,118.69,26.0]
[1743940568511,7.7073,118.71,118.67,26.0]
[1743940573056,7.7073,118.71,118.68,26.0]
[1743940575451,7.7373,118.71,118.68,26.0]
[1743940575658,7.7373,118.71,118.65,7.12]
[1743940576366,7.48392935,118.71,118.65,7.12]
[1743940585266,7.48392935,118.71,118.66,0.42648471]
[1743940586347,7.48392935,118.71,118.69,26.0]
[1743940594645,1.6545,118.71,118.69,26.0]
[1743940597357,1.6545,118.71,118.69,23.8186566]
[1743940598770,1.6545,118.71,118.68,0.14216157]
[1743940599069,1.6545,118.71,118.67,0.42648471]
[1743940599269,1.6545,118.71,118.69,26.0]
[1743940602374,0.03,118.71,118.69,26.0]
[1743940603547,0.03,118.71,118.69,33.12]
[1743940604172,0.03,118.71,118.7,0.42648471]
[1743940604686,0.03,118.71,118.69,33.12]
[1743940605268,1.539,118.7,118.68,26.0]
[1743940605582,1.539,118.7,118.69,26.0]
[1743940609293,0.03,118.71,118.69,26.0]
[1743940614985,0.03,118.72,118.7,33.26216157]
[1743940615188,0.03,118.72,118.7,33.12]
[1743940617887,0.03,118.72,118.7,26.0]
[1743940626083,0.03,118.72,118.7,26.063]
[1743940631396,0.03,118.72,118.7,0.063]
[1743940632800,6.0721,118.71,118.7,0.063]
[1743940637622,0.03,118.72,118.7,0.063]
[1743940645915,6.2318,118.72,118.7,0.063]
[1743940650017,1.6609,118.71,118.7,0.063]
[1743940653347,1.6909,118.71,118.7,0.063]
[1743940654143,20.76703357,118.71,118.7,0.063]
[1743940665728,1.6909,118.71,118.7,0.063]
[1743940666759,0.03,118.71,118.7,0.063]
[1743940701596,107.11603357,118.71,118.7,0.063]
[1743940701803,108.67873357,118.71,118.7,0.063]
[1743940702003,19.07613357,118.7,118.65,0.063]
[1743940702176,19.07613357,118.68,118.65,0.063]
[1743940702690,1.5627,118.67,118.65,0.063]
[1743940703298,19.07613357,118.66,118.65,0.063]
[1743940720397,18.933972,118.66,118.65,0.063]
[1743940720590,26.053972,118.66,118.65,0.063]
[1743940721890,18.933972,118.66,118.65,0.063]
[1743940722091,26.053972,118.66,118.65,0.063]
[1743940722596,7.12,118.66,118.65,0.063]
[1743940723314,18.64964886,118.67,118.65,0.063]
[1743940723610,25.76964886,118.67,118.65,0.063]
[1743940725694,82.08432314,118.68,118.65,0.063]
[1743940725899,89.20432314,118.68,118.65,0.063]
[1743940727416,82.08432314,118.68,118.65,0.063]
[1743940727714,89.20432314,118.68,118.65,0.063]
[1743940735923,82.08432314,118.68,118.65,0.063]
[1743940736101,89.20432314,118.68,118.65,0.063]
[1743940739119,88.92,118.68,118.65,0.063]
[1743940741105,18.933972,118.67,118.65,0.063]
[1743940750135,18.79181043,118.67,118.65,0.063]
[1743940750326,88.92,118.68,118.65,0.063]
[1743940750834,81.8,118.68,118.65,0.063]
[1743940784083,46.04933357,118.66,118.65,0.063]
[1743940786018,65.03880674,118.66,118.65,0.063]
[1743940787603,59.19611709,118.66,118.65,0.063]
[1743940789496,46.04933357,118.66,118.65,0.063]
[1743940798992,25.32,118.63,118.61,0.063]
[1743940799197,52.053972,118.62,118.61,0.063]
[1743940799818,133.853972,118.62,118.61,0.063]
[1743940800199,77.51613357,118.62,118.61,0.063]
[1743940800398,79.14443357,118.62,118.61,0.063]
[1743940801817,79.64443357,118.62,118.61,0.063]
[1743940802621,0.28432314,118.6,118.57,0.063]
[1743940802913,0.14216157,118.59,118.57,0.063]
[1743940803116,48.51885104,118.59,118.57,0.063]
[1743940803323,44.39613357,118.59,118.57,0.063]
[1743940803615,19.07613357,118.59,118.57,0.063]
[1743940807425,100.87613357,118.59,118.57,0.063]
[1743940810224,126.19613357,118.59,118.57,0.063]
[1743940810407,100.87613357,118.59,118.57,0.063]
[1743940810803,44.90613357,118.59,118.57,0.063]
[1743940811308,44.40613357,118.59,118.57,0.063]
[1743940812213,44.90613357,118.59,118.57,0.063]
[1743940812414,44.40613357,118.59,118.57,0.063]
[1743940817524,19.07613357,118.59,118.57,0.063]
[1743940827139,26.19613357,118.59,118.57,0.063]
[1743940828644,52.02613357,118.59,118.57,0.063]
[1743940832426,51.52613357,118.59,118.57,0.063]
[1743940832625,52.02613357,118.59,118.57,0.063]
[1743940834742,19.57613357,118.58,118.57,0.063]
[1743940835056,44.90613357,118.57,118.56,0.063]
[1743940841052,44.763972,118.57,118.56,0.063]
[1743940843265,44.90613357,118.57,118.56,0.063]
[1743940844066,44.40613357,118.57,118.56,0.063]
[1743940844268,44.90613357,118.57,118.56,0.063]
[1743940853471,58.05291709,118.57,118.56,0.063]
[1743940854188,58.08291709,118.57,118.56,0.063]
[1743940856177,133.27216157,118.55,118.54,0.063]
[1743940856377,167.72023357,118.55,118.54,0.063]
[1743940856558,184.60329282,118.55,118.54,0.063]
[1743940861284,184.60329282,118.55,118.51,0.063]
[1743940861285,26.14216157,118.52,118.51,0.063]
[1743940861458,44.40613357,118.52,118.51,0.063]
[1743940865536,44.79181043,118.52,118.51,0.063]
[1743940865813,26.19613357,118.52,118.51,0.063]
[1743940866111,33.12,118.52,118.51,0.063]
[1743940866800,26.0,118.52,118.51,0.063]
[1743940877813,44.933972,118.52,118.51,0.063]
[1743940889621,45.07613357,118.52,118.51,0.063]
[1743940889923,126.87613357,118.52,118.51,0.063]
[1743940890518,152.20613357,118.52,118.51,0.063]
[1743940895427,44.40613357,118.52,118.51,0.063]
[1743940901518,51.52613357,118.52,118.51,0.063]
[1743940907837,0.14216157,118.49,118.47,0.063]
[1743940908041,26.053972,118.48,118.47,0.063]
[1743940908740,26.053972,118.48,118.47,0.0001]
[1743940910039,31.962072,118.48,118.47,0.0001]
[1743940911139,13.0281,118.48,118.47,0.0001]
[1743940911724,13.31242314,118.48,118.47,0.0001]
[1743940913045,13.0281,118.48,118.47,0.0001]
[1743940913741,5.9081,118.48,118.47,0.0001]
[1743940913948,5.9078,118.49,118.47,6.5048]
[1743940914123,5.9071,118.5,118.47,6.5048]
[1743940916129,5.9071,118.5,118.48,1.5992]
[1743940919751,5.9071,118.5,118.48,1.6292]
[1743940919951,81.8,118.51,118.48,1.6292]
[1743940921445,87.7066,118.51,118.48,1.6292]
[1743940924457,81.8,118.51,118.48,7.5373]
[1743940924760,0.063,118.52,118.49,6.5047]
[1743940925547,0.063,118.52,118.49,12.4119]
[1743940927953,0.063,118.52,118.51,27.5647]
[1743940929164,0.063,118.52,118.51,33.4713]
[1743940929637,0.063,118.52,118.51,1.5647]
[1743940930042,0.063,118.52,118.49,6.5047]
[1743940930363,0.063,118.52,118.49,12.4122]
[1743940935165,0.063,118.52,118.5,0.14216157]
[1743940935872,0.063,118.52,118.49,12.4122]
[1743940941181,0.063,118.52,118.49,27.1813]
[1743940941480,0.063,118.52,118.51,26.0]
[1743940943182,0.063,118.52,118.51,31.9066]
[1743940944782,0.063,118.52,118.49,6.5047]
[1743940944988,0.063,118.52,118.49,26.0]
[1743940945274,0.063,118.52,118.48,0.03]
[1743940945781,0.063,118.52,118.48,5.938]
[1743940948382,0.063,118.52,118.51,26.0]
[1743940950289,0.063,118.52,118.51,31.9066]
[1743940951485,0.063,118.52,118.48,7.15]
[1743940951690,0.063,118.52,118.49,5.9076]
[1743940954597,0.063,118.52,118.5,0.14216157]
[1743940955298,0.063,118.52,118.51,26.14216157]
[1743940956897,0.063,118.52,118.51,32.04876157]
[1743940957207,0.063,118.52,118.51,32.33308471]
[1743940958294,0.063,118.52,118.51,36.63539516]
[1743940960999,0.0001,118.52,118.51,55.28504402]
[1743940962579,1e-08,118.54,118.53,0.28432314]
[1743940962804,1e-08,118.54,118.53,7.40432314]
[1743940964115,1e-08,118.54,118.53,13.30992314]
[1743940964281,1e-08,118.54,118.53,13.0256]
[1743940964684,1e-08,118.54,118.53,13.16776157]
[1743940964883,1e-08,118.54,118.53,13.45208471]
[1743940966214,1e-08,118.54,118.53,32.10173357]
[1743940969283,1e-08,118.54,118.53,33.72703357]
[1743940969682,1e-08,118.54,118.53,32.10173357]
[1743940969884,1e-08,118.54,118.53,26.0]
[1743940970090,1e-08,118.54,118.52,5.9061]
[1743940972495,1e-08,118.54,118.52,5.9691]
[1743940973815,0.03,118.57,118.53,0.14216157]
[1743940974415,0.03,118.57,118.54,5.9051]
[1743940980299,0.03,118.57,118.54,13.0051]
[1743940980722,0.03,118.57,118.56,26.0]
[1743940981839,0.03,118.57,118.56,31.9041]
[1743940985332,0.03,118.57,118.56,26.0]
[1743940985519,0.03,118.57,118.53,5.9056]
[1743940985746,1.6247,118.57,118.53,5.9056]
[1743940986252,1.6247,118.57,118.53,27.23914566]
[1743940986556,0.03,118.57,118.54,19.07613357]
[1743940986746,0.03,118.57,118.56,26.0]
[1743940986945,0.03,118.57,118.56,31.9041]
[1743940987637,0.03,118.57,118.56,32.04626157]
[1743940988237,0.03,118.61,118.58,0.14216157]
[1743940990358,0.03,118.61,118.59,5.9026]
[1743940991349,0.03,118.61,118.6,0.14216157]
[1743940992247,0.03,118.61,118.6,6.04426157]
[1743940996031,0.03,118.62,118.61,26.0]
[1743940996664,0.03,118.62,118.61,31.9016]
[1743940997541,0.03,118.62,118.61,32.04376157]
[1743940999263,0.0001,118.62,118.61,50.97773357]
[1743940999434,0.0001,118.62,118.61,101.62773357]
[1743940999634,0.0001,118.62,118.61,50.97773357]
[1743940999837,0.063,118.64,118.62,0.14216157]
[1743941000036,0.063,118.64,118.63,7.24216157]
[1743941001455,0.063,118.64,118.63,13.14276157]
[1743941002065,0.063,118.64,118.63,13.0006]
[1743941002370,0.063,118.64,118.63,5.9006]
[1743941002968,0.063,118.64,118.63,6.32708471]
[1743941003155,0.063,118.64,118.63,6.04276157]
[1743941004393,0.063,118.64,118.62,5.9011]
[1743941004570,0.063,118.64,118.62,26.0]
[1743941004769,0.063,118.64,118.6,5.9021]
[1743941006258,0.063,118.64,118.59,6.04466157]
[1743941006469,5.9632,118.64,118.59,6.04466157]
[1743941007573,0.063,118.64,118.59,6.04466157]
[1743941007969,0.063,118.64,118.59,20.80136157]
[1743941008273,0.063,118.64,118.6,0.14216157]
[1743941009767,0.063,118.64,118.61,5.9016]
[1743941009961,0.063,118.64,118.63,26.0]
[1743941011075,0.063,118.64,118.63,5.9006]
[1743941011255,0.063,118.64,118.63,31.9006]
[1743941011455,0.063,118.64,118.63,5.9006]
[1743941011670,0.063,118.64,118.63,32.04276157]
[1743941014152,0.063,118.64,118.63,50.69241043]
[1743941014354,0.063,118.64,118.63,50.97673357]
[1743941014558,0.063,118.64,118.63,24.97673357]
[1743941015860,0.063,118.64,118.61,5.9016]
[1743941019582,0.063,118.64,118.63,31.9006]
[1743941019785,1.6559,118.63,118.61,26.0]
[1743941019962,1.6559,118.63,118.6,0.063]
[1743941021973,7.5566,118.63,118.6,0.063]
[1743941023273,1.6559,118.61,118.6,0.063]
[1743941024585,1.6559,118.61,118.54,0.063]
[1743941024786,1.6559,118.59,118.54,0.063]
[1743941025084,5.9031,118.58,118.55,26.0]
[1743941027780,7.5587,118.59,118.54,26.063]
[1743941028178,7.5587,118.59,118.55,26.0]
[1743941028381,1.6559,118.59,118.55,26.0]
[1743941028686,1.6559,118.59,118.54,31.9681]
[1743941032692,1.6559,118.59,118.54,39.0881]
[1743941032990,7.5587,118.59,118.54,39.0881]
[1743941039688,1.6559,118.59,118.54,39.0881]
[1743941043406,7.5587,118.59,118.54,39.0881]
[1743941045599,1.6559,118.59,118.54,39.0881]
[1743941046915,7.5586,118.59,118.54,39.0881]
[1743941047115,1.6559,118.59,118.54,39.0881]
[1743941047408,1.6559,118.59,118.55,0.14216157]
[1743941047614,1.6559,118.59,118.56,5.9041]
[1743941047786,1.6559,118.59,118.55,6.04666157]
[1743941048313,12.4453,118.6,118.58,26.0]
[1743941048314,0.03,118.6,118.58,26.0]
[1743941048523,1.5455,118.62,118.6,26.0]
[1743941048820,0.063,118.64,118.61,0.14216157]
[1743941048988,0.063,118.64,118.6,26.0]
[1743941051214,0.063,118.64,118.6,31.902]
[1743941052514,0.063,118.64,118.6,26.0]
[1743941052812,0.063,118.64,118.6,31.9019]
[1743941055401,0.063,118.64,118.6,46.6573]
[1743941055923,0.063,118.64,118.61,0.14216157]
[1743941057822,0.063,118.64,118.62,5.9011]
[1743941060844,0.063,118.64,118.61,13.20356157]
[1743941062534,0.063,118.64,118.63,26.0]
[1743941062738,0.03,118.66,118.65,26.0]
[1743941063841,0.03,118.66,118.65,31.8997]
[1743941065941,0.03,118.66,118.65,39.0597]
[1743941069545,0.03,118.66,118.65,39.20186157]
[1743941071027,0.03,118.66,118.65,43.65240691]
[1743941071249,0.03,118.66,118.65,62.30205577]
[1743941071755,0.0001,118.66,118.65,112.95205577]
[1743941072054,0.0001,118.66,118.65,62.30205577]
[1743941072734,0.0001,118.66,118.65,112.95205577]
[1743941075137,0.0001,118.66,118.65,113.01505577]
[1743941075965,0.0001,118.66,118.65,62.36505577]
[1743941076646,0.0001,118.66,118.65,113.01505577]
[1743941104181,0.0001,118.66,118.65,62.06073263]
[1743941104371,0.0001,118.66,118.65,62.34505577]
[1743941104763,0.0001,118.66,118.65,39.24486157]
[1743941105981,0.0001,118.66,118.65,6.10486157]
[1743941107678,1.5532,118.68,118.65,25.03883357]
[1743941107976,1.5532,118.68,118.67,26.0]
[1743941108878,1.5532,118.68,118.67,31.8987]
[1743941110281,1.5532,118.68,118.67,32.04086157]
[1743941111380,1.5532,118.68,118.67,50.97483357]
[1743941113282,1.5532,118.68,118.67,101.55483357]
[1743941113481,1.5532,118.68,118.67,50.97483357]
[1743941114363,6.5036,118.7,118.68,18.933972]
[1743941114889,0.03,118.7,118.68,26.073972]
[1743941115386,0.03,118.7,118.68,31.972172]
[1743941116391,0.0001,118.69,118.68,32.11433357]
[1743941117576,0.0001,118.69,118.68,38.70023172]
[1743941119092,0.0001,118.69,118.68,89.28023172]
[1743941119279,0.0001,118.7,118.69,0.14216157]
[1743941119484,6.1842,118.73,118.72,5.8962]
[1743941121192,0.03,118.78,118.74,26.14216157]
[1743941121377,0.03,118.78,118.76,0.14216157]
[1743941121701,0.03,118.78,118.77,31.8937]
[1743941122987,0.03,118.78,118.77,26.0]
[1743941123391,0.03,118.78,118.75,31.8944]
[1743941123591,0.03,118.78,118.77,2.10500766]
[1743941123988,7.8592,118.78,118.72,5.896]
[1743941125399,5.8937,118.77,118.72,5.896]
[1743941128505,7.8592,118.78,118.73,19.07613357]
[1743941128805,7.8592,118.78,118.72,5.896]
[1743941128980,7.8906,118.75,118.7,5.8972]
[1743941129576,7.8906,118.75,118.71,26.0]
[1743941130589,7.8906,118.75,118.71,31.8965]
[1743941131103,7.8906,118.75,118.71,39.0965]
[1743941133404,13.7854,118.75,118.71,26.0]
[1743941133604,13.7854,118.75,118.69,5.8975]
[1743941134805,13.7854,118.75,118.68,5.8982]
[1743941136211,13.7854,118.75,118.69,8.00341117]
[1743941137008,13.7854,118.75,118.7,2.10591117]
[1743941138013,13.7854,118.75,118.71,2.10591117]
[1743941139114,13.7854,118.75,118.72,2.10591117]
[1743941139614,13.7854,118.75,118.69,5.8975]
[1743941140312,13.7854,118.75,118.7,2.10589178]
[1743941140807,13.7854,118.75,118.71,0.14216157]
[1743941140808,7.8906,118.75,118.71,0.14216157]
[1743941141208,7.8906,118.75,118.72,2.10589178]
[1743941141691,13.7853,118.75,118.72,2.10589178]
[1743941142313,13.7853,118.75,118.73,2.10589178]
[1743941143419,13.7853,118.75,118.71,5.8966]
[1743941144499,13.7853,118.75,118.72,2.10573532]
[1743941145610,7.8906,118.75,118.72,2.10573532]
[1743941145911,7.8906,118.75,118.73,2.10573532]
[1743941146498,7.8906,118.75,118.74,2.10573532]
[1743941147298,13.7853,118.75,118.71,0.063]
[1743941148107,18.933972,118.74,118.72,2.10589376]
[1743941149198,18.933972,118.74,118.71,0.063]
[1743941149899,5.8957,118.73,118.71,0.063]
[1743941151320,27.022572,118.72,118.65,5.9625]
[1743941152025,5.8967,118.71,118.67,26.0]
[1743941153020,5.8967,118.71,118.68,2.10634821]
[1743941153805,5.8967,118.71,118.69,2.10634821]
[1743941154721,5.8967,118.71,118.66,31.899]
[1743941155426,5.8967,118.71,118.67,2.10662238]
[1743941156100,5.8967,118.71,118.68,2.10662238]